fUSD/lending_fUSD_20250606
["ID","MTS","AMOUNT","RATE_DAILY","PERIOD"]
[364753042,1749229847878,-480.0,0.00027561,5]
[364753043,1749229847888,-1178.04,0.00027561,5]
[364753044,1749229847898,-480.0,0.00027561,5]
[364753045,1749229847908,-480.0,0.00027561,5]
[364753046,1749229847917,-1000.0,0.00027561,5]
[364753047,1749229847927,-480.0,0.00027561,5]
[364753048,1749229847936,-480.0,0.00027561,5]
[364753049,1749229847946,-480.0,0.00027561,5]
[364753050,1749229847955,-995.2,0.00027561,5]
[364753051,1749229847965,-480.0,0.00027561,5]
[364753052,1749229847974,-480.0,0.00027561,5]
[364753053,1749229847983,-1178.83,0.00027561,5]
[364753054,1749229847993,-1100.7,0.00027561,5]
[364753055,1749229848003,-1284.64,0.00027561,5]
[364753056,1749229848012,-751.51,0.00027561,5]
[364753057,1749229848022,-835.65,0.00027561,5]
[364753058,1749229848031,-3636.22,0.00027561,5]
[364753059,1749229848041,-480.0,0.00027561,5]
[364753060,1749229848051,-600.0,0.00027561,30]
[364753061,1749229848061,-1074.16,0.00027561,5]
[364753062,1749229848070,-480.0,0.00027561,5]
[364753063,1749229848079,-5321.9,0.00027561,5]
[364753064,1749229848089,-480.0,0.00027561,5]
[364753065,1749229848098,-480.0,0.00027561,5]
[364753066,1749229848108,-480.0,0.00027561,5]
[364753067,1749229848117,-987.67,0.00027561,5]
[364753068,1749229848127,-480.0,0.00027561,5]
[364753069,1749229848137,-2080.45,0.00027561,5]
[364753070,1749229848147,-700.11,0.00027561,5]
[364753071,1749229848156,-480.0,0.00027561,5]
[364753072,1749229848166,-734.66,0.00027561,5]
[364753073,1749229848176,-6395.04,0.00027561,5]
[364753074,1749229848186,-480.0,0.00027561,5]
[364753075,1749229848195,-480.0,0.00027561,5]
[364753076,1749229848205,-835.42,0.00027561,5]
[364753077,1749229848215,-480.0,0.00027561,5]
[364753078,1749229848224,-713.79,0.00027561,5]
[364753079,1749229848233,-2288.96,0.00027561,5]
[364753080,1749229848243,-480.0,0.00027561,5]
[364753081,1749229848252,-1697.69,0.00027561,5]
[364753082,1749229848262,-727.92,0.00027561,5]
[364753083,1749229848272,-12208.62,0.00027561,5]
[364753084,1749229848282,-3886.76,0.00027561,5]
[364753085,1749229848291,-480.0,0.00027561,5]
[364753086,1749229848301,-6723.06,0.00027561,5]
[364753087,1749229848311,-2328.748482,0.00027561,5]
[364753088,1749229848320,-480.0,0.00027561,5]
[364753089,1749229848330,-480.0,0.00027561,5]
[364753090,1749229848340,-3392.86,0.00027561,5]
[364753091,1749229848349,-480.0,0.00027561,5]
[364753092,1749229848359,-540.76,0.00027561,5]
[364753093,1749229848368,-527.54,0.00027561,5]
[364753094,1749229848379,-1317.74,0.00027561,5]
[364753095,1749229848390,-480.0,0.00027561,5]
[364753096,1749229848400,-2152.11,0.00027561,5]
[364753097,1749229848410,-9718.94,0.00027561,5]
[364753098,1749229848420,-480.0,0.00027561,5]
[364753099,1749229848430,-76268.38,0.00027561,5]
[364753100,1749229848440,-978.82,0.00027561,5]
[364753101,1749229848449,-480.0,0.00027561,5]
[364753102,1749229848458,-480.0,0.00027561,5]
[364753103,1749229848468,-480.0,0.00027561,5]
[364753104,1749229848478,-587.06,0.00027561,5]
[364753105,1749229848488,-2136.804126,0.00027561,5]
[364753106,1749229848497,-499.91,0.00027561,5]
[364753107,1749229848507,-725.67,0.00027561,5]
[364753108,1749229848516,-480.0,0.00027561,5]
[364753109,1749229848526,-480.0,0.00027561,5]
[364753110,1749229848536,-3764.36,0.00027561,5]
[364753111,1749229848546,-9211.11,0.00027561,5]
[364753112,1749229848555,-311.64003127,0.00027561,5]
[364753113,1749229848565,-1051.06,0.00027561,5]
[364753114,1749229848576,-1366.23,0.00027561,5]
[364753115,1749229848586,-480.0,0.00027561,5]
[364753116,1749229848596,-983.23,0.00027561,5]
[364753117,1749229848610,-1624.53,0.00027561,5]
[364753118,1749229848619,-2500.86,0.00027561,5]
[364753119,1749229848629,-508.09,0.00027561,5]
[364753120,1749229848640,-2408.48,0.00027561,5]
[364753121,1749229848650,-480.0,0.00027561,5]
[364753122,1749229848660,-1199.82,0.00027561,5]
[364753123,1749229848670,-480.0,0.00027561,5]
[364753124,1749229848679,-1867.89,0.00027561,5]
[364753125,1749229848690,-1202.07,0.00027561,5]
[364753126,1749229848700,-1234.98,0.00027561,5]
[364753127,1749229848710,-745.42,0.00027561,5]
[364753128,1749229848719,-1000.0,0.00027561,5]
[364753129,1749229848729,-480.0,0.00027561,5]
[364753130,1749229848739,-3729.37,0.00027561,5]
[364753131,1749229848749,-1324.5,0.00027561,5]
[364753132,1749229848759,-480.0,0.00027561,5]
[364753133,1749229848768,-480.0,0.00027561,5]
[364753134,1749229848778,-506.1114017,0.00027561,5]
[364753135,1749229848787,-722.71,0.00027561,5]
[364753136,1749229848797,-1417.88,0.00027561,5]
[364753137,1749229848807,-1476.23,0.00027561,5]
[364753138,1749229848816,-480.0,0.00027561,5]
[364753139,1749229848825,-868.6,0.00027561,5]
[364753140,1749229848835,-480.0,0.00027561,5]
[364753141,1749229848845,-1888.62,0.00027561,5]
[364753142,1749229848854,-480.0,0.00027561,5]
[364753143,1749229848864,-632.37,0.00027561,5]
[364753144,1749229848874,-480.0,0.00027561,5]
[364753145,1749229848883,-756.12,0.00027561,5]
[364753146,1749229848895,-1440.17,0.00027561,5]
[364753147,1749229848904,-1194.84,0.00027561,2]
[364753148,1749229848914,-2062.89,0.00027561,5]
[364753149,1749229848924,-557.64,0.00027561,5]
[364753150,1749229848934,-1788.1,0.00027561,5]
[364753151,1749229848943,-480.0,0.00027561,5]
[364753152,1749229848953,-1072.25,0.00027561,5]
[364753153,1749229848963,-480.0,0.00027561,5]
[364753154,1749229848972,-3928.65,0.00027561,5]
[364753155,1749229848982,-13781.59,0.00027561,5]
[364753156,1749229848991,-480.0,0.00027561,5]
[364753157,1749229849001,-480.0,0.00027561,5]
[364753158,1749229849011,-480.0,0.00027561,5]
[364753159,1749229849021,-480.0,0.00027561,5]
[364753160,1749229849030,-480.0,0.00027561,5]
[364753161,1749229849040,-3569.21,0.00027561,5]
[364753162,1749229849050,-2660.61,0.00027561,5]
[364753163,1749229849060,-480.0,0.00027561,5]
[364753164,1749229849070,-1139.74,0.00027561,5]
[364753165,1749229849079,-480.0,0.00027561,5]
[364753166,1749229849090,-827.81,0.00027561,5]
[364753167,1749229849099,-480.0,0.00027561,5]
[364753168,1749229849109,-480.0,0.00027561,5]
[364753169,1749229849118,-480.0,0.00027561,5]
[364753170,1749229849128,-1869.68,0.00027561,5]
[364753171,1749229849138,-5122.75,0.00027561,5]
[364753172,1749229849148,-480.0,0.00027561,5]
[364753173,1749229849158,-1027.17,0.00027561,5]
[364753174,1749229849167,-3640.47,0.00027561,5]
[364753175,1749229849178,-993.4,0.00027561,5]
[364753176,1749229849188,-1731.35,0.00027561,5]
[364753177,1749229849198,-2864.55,0.00027561,5]
[364753178,1749229849208,-946.49,0.00027561,5]
[364753179,1749229849219,-480.0,0.00027561,5]
[364753180,1749229849229,-480.0,0.00027561,5]
[364753181,1749229849241,-480.0,0.00027561,5]
[364753182,1749229849252,-988.86,0.00027561,5]
[364753183,1749229849262,-480.0,0.00027561,5]
[364753184,1749229849273,-576.53,0.00027561,5]
[364753185,1749229849283,-458.6407208,0.00027561,5]
[364753186,1749229849293,-1518.37,0.00027561,5]
[364753187,1749229849304,-1165.4,0.00027561,5]
[364753188,1749229849314,-516.9,0.00027561,5]
[364753189,1749229849324,-1631.49,0.00027561,5]
[364753190,1749229849335,-502.37,0.00027561,5]
[364753191,1749229849344,-818.38,0.00027561,5]
[364753192,1749229849355,-480.0,0.00027561,5]
[364753193,1749229849365,-397.16747098,0.00027561,5]
[364753194,1749229849375,-480.0,0.00027561,5]
[364753195,1749229849386,-575.57,0.00027561,5]
[364753196,1749229849396,-898.12,0.00027561,5]
[364753197,1749229849406,-480.0,0.00027561,5]
[364753198,1749229849416,-480.0,0.00027561,5]
[364753199,1749229849426,-544.71,0.00027561,5]
[364753200,1749229849436,-484.48,0.00027561,5]
[364753201,1749229849446,-480.0,0.00027561,5]
[364753202,1749229849457,-5019.69,0.00027561,5]
[364753203,1749229849467,-1270.81,0.00027561,5]
[364753204,1749229849478,-1082.09,0.00027561,5]
[364753205,1749229849488,-480.0,0.00027561,5]
[364753206,1749229849498,-642.47,0.00027561,5]
[364753207,1749229849509,-480.0,0.00027561,5]
[364753208,1749229849519,-659.85,0.00027561,5]
[364753209,1749229849530,-480.0,0.00027561,5]
[364753210,1749229849540,-706.87,0.00027561,5]
[364753211,1749229849550,-1411.91,0.00027561,5]
[364753212,1749229849560,-1928.36,0.00027561,5]
[364753213,1749229849570,-480.0,0.00027561,5]
[364753214,1749229849580,-2180.66,0.00027561,5]
[364753215,1749229849590,-702.23,0.00027561,5]
[364753216,1749229849603,-480.0,0.00027561,5]
[364753217,1749229849614,-696.68,0.00027561,5]
[364753218,1749229849624,-1531.65,0.00027561,5]
[364753219,1749229849634,-1808.13,0.00027561,5]
[364753220,1749229849647,-480.0,0.00027561,5]
[364753221,1749229849657,-480.0,0.00027561,5]
[364753222,1749229849666,-480.0,0.00027561,5]
[364753223,1749229849677,-480.0,0.00027561,5]
[364753224,1749229849688,-1978.88,0.00027561,5]
[364753225,1749229849697,-480.0,0.00027561,5]
[364753226,1749229849707,-2908.51,0.00027561,5]
[364753227,1749229849717,-669.35,0.00027561,5]
[364753228,1749229849727,-480.0,0.00027561,5]
[364753229,1749229849737,-1262.05,0.00027561,5]
[364753230,1749229849747,-480.0,0.00027561,5]
[364753231,1749229849757,-480.0,0.00027561,5]
[364753232,1749229849767,-1585.44,0.00027561,5]
[364753233,1749229849777,-863.16,0.00027561,5]
[364753234,1749229849786,-716.92,0.00027561,5]
[364753235,1749229849796,-480.0,0.00027561,5]
[364753236,1749229849806,-480.0,0.00027561,5]
[364753237,1749229849815,-480.0,0.00027561,5]
[364753238,1749229849825,-480.0,0.00027561,5]
[364753239,1749229849836,-490.14,0.00027561,5]
[364753240,1749229849846,-10266.6,0.00027561,5]
[364753241,1749229849855,-480.0,0.00027561,5]
[364753242,1749229849866,-2790.95,0.00027561,5]
[364753243,1749229849875,-1988.94,0.00027561,5]
[364753244,1749229849885,-562.55,0.00027561,5]
[364753245,1749229849896,-480.0,0.00027561,5]
[364753246,1749229849906,-480.0,0.00027561,5]
[364753247,1749229849915,-480.0,0.00027561,5]
[364753248,1749229849925,-518.16,0.00027561,5]
[364753249,1749229849936,-620.01,0.00027561,5]
[364753250,1749229849946,-576.54,0.00027561,5]
[364753251,1749229849956,-496.01,0.00027561,5]
[364753252,1749229849966,-480.0,0.00027561,5]
[364753253,1749229849976,-480.0,0.00027561,5]
[364753254,1749229849986,-480.0,0.00027561,5]
[364753255,1749229849996,-3901.93,0.00027561,5]
[364753256,1749229850007,-480.0,0.00027561,5]
[364753257,1749229850017,-480.0,0.00027561,5]
[364753258,1749229850027,-1302.74,0.00027561,5]
[364753259,1749229850038,-14757.67,0.00027561,5]
[364753260,1749229850048,-2148.25,0.00027561,5]
[364753261,1749229850059,-9779.61,0.00027561,5]
[364753262,1749229850069,-480.0,0.00027561,5]
[364753263,1749229850079,-21008.66,0.00027561,5]
[364753264,1749229850089,-673.26,0.00027561,5]
[364753265,1749229850098,-480.0,0.00027561,5]
[364753266,1749229850108,-480.0,0.00027561,5]
[364753267,1749229850118,-889.91,0.00027561,5]
[364753268,1749229850128,-2708.81,0.00027561,5]
[364753269,1749229850138,-776.83,0.00027561,5]
[364753270,1749229850147,-1377.28,0.00027561,5]
[364753271,1749229850157,-585.43,0.00027561,5]
[364753272,1749229850167,-480.0,0.00027561,5]
[364753273,1749229850176,-682.39,0.00027561,5]
[364753274,1749229850186,-2005.29,0.00027561,5]
[364753275,1749229850196,-4252.69,0.00027561,5]
[364753276,1749229850205,-2178.41,0.00027561,5]
[364753277,1749229850215,-848.79,0.00027561,5]
[364753278,1749229850225,-1974.61,0.00027561,5]
[364753279,1749229850234,-827.75,0.00027561,5]
[364753280,1749229850244,-819.47,0.00027561,5]
[364753281,1749229850253,-480.0,0.00027561,5]
[364753282,1749229850263,-480.0,0.00027561,5]
[364753283,1749229850273,-480.0,0.00027561,2]
[364753284,1749229850283,-2003.46,0.00027561,5]
[364753285,1749229850293,-637.64,0.00027561,5]
[364753286,1749229850303,-1355.4,0.00027561,5]
[364753287,1749229850312,-480.0,0.00027561,5]
[364753288,1749229850322,-480.0,0.00027561,5]
[364753289,1749229850332,-480.0,0.00027561,5]
[364753290,1749229850342,-480.0,0.00027561,5]
[364753291,1749229850352,-480.0,0.00027561,2]
[364753292,1749229850362,-1289.4,0.00027561,5]
[364753293,1749229850372,-841.89,0.00027561,5]
[364753294,1749229850382,-754.23,0.00027561,5]
[364753295,1749229850393,-1582.7,0.00027561,5]
[364753296,1749229850404,-849.03,0.00027561,5]
[364753297,1749229850415,-787.91,0.00027561,5]
[364753298,1749229850426,-739.93,0.00027561,5]
[364753299,1749229850436,-692.16,0.00027561,5]
[364753300,1749229850447,-480.0,0.00027561,2]
[364753301,1749229850458,-1648.73,0.00027561,5]
[364753302,1749229850468,-580.44,0.00027561,5]
[364753303,1749229850478,-1093.91,0.00027561,5]
[364753304,1749229850488,-480.0,0.00027561,5]
[364753305,1749229850499,-1017.84,0.00027561,5]
[364753306,1749229850509,-623.53,0.00027561,5]
[364753307,1749229850520,-611.15698057,0.00027561,2]
[364753308,1749229850530,-348.32517245,0.00027567,2]
[364753309,1749229850539,-500.0,0.00027573,5]
[364753310,1749229850549,-500.0,0.00027573,3]
[364753311,1749229850559,-502.36872942,0.00027573,5]
[364753312,1749229850568,-500.0,0.00027573,5]
[364753313,1749229850578,-500.0,0.00027573,5]
[364753314,1749229850588,-500.0,0.00027573,5]
[364753315,1749229850598,-500.0,0.00027573,5]
[364753316,1749229850610,-173.22715546,0.00027573,5]
[364753317,1749229850620,-500.0,0.00027573,5]
[364753318,1749229850630,-500.0,0.00027573,5]
[364753319,1749229850641,-500.0,0.00027573,5]
[364753320,1749229850651,-34288.51421164,0.00027583,2]
[364753321,1749229850661,-151.0,0.00027584,7]
[364753322,1749229850671,-151.0,0.00027584,7]
[364753323,1749229850681,-203.614888,0.00027584,7]
[364753324,1749229850692,-161.74902463,0.00027584,2]
[364753325,1749229850702,-151.0,0.00027596,5]
[364753326,1749229850711,-10600.0,0.000276,10]
[364753327,1749229850721,-27747.48,0.000276,2]
[364753328,1749229850731,-183.6666071,0.00027625,2]
[364753329,1749229850741,-768.86091768,0.00027626,2]
[364753330,1749229850751,-169.71507828,0.00027634,2]
[364753331,1749229850761,-9479.09402073,0.00027634,2]
[364753332,1749229850771,-34371.923169,0.00027652,2]
[364753333,1749229850781,-4337.28964726,0.00027653,2]
[364753334,1749229850790,-34288.51421164,0.00027658,2]
[364753335,1749229850800,-348.32517245,0.00027664,2]
[364753336,1749229850809,-166.66,0.00027678,2]
[364753337,1749229850819,-150.0,0.00027687,2]
[364753338,1749229850829,-1408.86277605,0.00027695,2]
[364753339,1749229850838,-21911.0,0.00027699,2]
[364753340,1749229850849,-2100.0,0.000277,10]
[364753341,1749229850859,-161.74902463,0.00027708,2]
[364753342,1749229850870,-819.85951285,0.00027716,2]
[364753343,1749229850879,-480.0,0.00027724,5]
[364753344,1749229850889,-480.0,0.00027724,5]
[364753345,1749229850898,-480.0,0.00027724,5]
[364753346,1749229850908,-478.14852214,0.00027724,5]
[364753347,1749229850918,-151.0,0.00027724,7]
[364753348,1749229850928,-151.0,0.00027724,7]
[364753349,1749229850937,-151.0,0.00027724,7]
[364753350,1749229850947,-151.0,0.00027724,7]
[364753351,1749229850957,-1300.218002,0.00027724,7]
[364753352,1749229850967,-1300.218002,0.00027724,7]
[364753353,1749229850976,-151.0,0.00027724,7]
[364753354,1749229850985,-151.0,0.00027724,7]
[364753355,1749229850995,-151.0,0.00027724,7]
[364753356,1749229851005,-151.0,0.00027724,7]
[364753357,1749229851015,-151.0,0.00027724,7]
[364753358,1749229851025,-473.147601,0.00027724,7]
[364753359,1749229851035,-473.147601,0.00027724,7]
[364753360,1749229851044,-151.0,0.00027724,7]
[364753361,1749229851054,-151.0,0.00027724,7]
[364753362,1749229851064,-151.0,0.00027724,7]
[364753363,1749229851074,-297.740512,0.00027724,7]
[364753364,1749229851084,-297.740512,0.00027724,7]
[364753365,1749229851094,-10000.0,0.00027724,7]
[364753366,1749229851103,-10000.0,0.00027724,7]
[364753367,1749229851113,-10000.0,0.00027724,7]
[364753368,1749229851123,-151.0,0.00027724,7]
[364753369,1749229851133,-151.0,0.00027724,7]
[364753370,1749229851143,-347.392354,0.00027724,7]
[364753371,1749229851152,-347.392354,0.00027724,7]
[364753372,1749229851163,-151.0,0.00027724,7]
[364753373,1749229851172,-151.0,0.00027724,7]
[364753374,1749229851183,-2223.030084,0.00027725,7]
[364753375,1749229851192,-2223.030084,0.00027725,7]
[364753376,1749229851202,-347.566727,0.00027725,7]
[364753377,1749229851212,-347.566727,0.00027725,7]
[364753378,1749229851222,-151.0,0.00027725,7]
[364753379,1749229851232,-300.0,0.00027725,10]
[364753380,1749229851241,-325.40679902,0.00027726,5]
[364753381,1749229851251,-480.0,0.00027726,5]
[364753382,1749229851261,-480.0,0.00027726,5]
[364753383,1749229851271,-480.0,0.00027726,5]
[364753384,1749229851281,-480.0,0.00027726,5]
[364753385,1749229851487,-1010.98,0.00027726,5]
[364753386,1749229851497,-480.0,0.00027726,5]
[364753387,1749229851507,-588.17258899,0.00027726,5]
[364753388,1749229851517,-480.0,0.00027726,5]
[364753389,1749229851527,-666.83,0.00027726,5]
[364753390,1749229851537,-489.78113232,0.00027726,5]
[364753391,1749229851547,-480.0,0.00027726,5]
[364753392,1749229851558,-480.0,0.00027726,5]
[364753393,1749229851567,-480.0,0.00027726,5]
[364753394,1749229851578,-480.0,0.00027726,5]
[364753395,1749229851588,-480.0,0.00027726,5]
[364753396,1749229851599,-480.0,0.00027726,5]
[364753397,1749229851613,-480.0,0.00027726,5]
[364753398,1749229851622,-480.0,0.00027726,5]
[364753399,1749229851632,-480.0,0.00027726,5]
[364753400,1749229851643,-480.0,0.00027726,5]
[364753401,1749229851654,-480.0,0.00027726,5]
[364753402,1749229851663,-1011.49,0.00027726,5]
[364753403,1749229851673,-480.0,0.00027726,5]
[364753404,1749229851685,-419.2472697,0.00027726,5]
[364753405,1749229851695,-480.0,0.00027726,5]
[364753406,1749229851705,-558.43,0.00027726,5]
[364753407,1749229851714,-480.0,0.00027726,5]
[364753408,1749229851723,-610.13,0.00027726,5]
[364753409,1749229851734,-505.7175822,0.00027726,5]
[364753410,1749229851744,-480.0,0.00027726,5]
[364753411,1749229851753,-151.0,0.00027726,7]
[364753412,1749229851763,-480.0,0.00027726,5]
[364753413,1749229851772,-1715.86,0.00027726,5]
[364753414,1749229851782,-807.41,0.00027726,5]
[364753415,1749229851791,-480.0,0.00027726,5]
[364753416,1749229851801,-602.58,0.00027726,5]
[364753417,1749229851811,-480.0,0.00027726,5]
[364753418,1749229851820,-500.0,0.00027726,5]
[364753419,1749229851831,-480.0,0.00027726,5]
[364753420,1749229851840,-480.0,0.00027726,5]
[364753421,1749229851850,-151.0,0.00027726,7]
[364753422,1749229851859,-480.0,0.00027726,5]
[364753423,1749229851869,-480.0,0.00027726,5]
[364753424,1749229851878,-176.947066,0.00027726,7]
[364753425,1749229851887,-480.0,0.00027726,5]
[364753426,1749229851897,-550.31,0.00027726,5]
[364753427,1749229851907,-480.0,0.00027726,5]
[364753428,1749229851917,-480.0,0.00027726,5]
[364753429,1749229851927,-176.947066,0.00027726,7]
[364753430,1749229851936,-622.13,0.00027726,5]
[364753431,1749229851946,-480.0,0.00027726,5]
[364753432,1749229851955,-599.55,0.00027726,5]
[364753433,1749229851965,-480.0,0.00027726,5]
[364753434,1749229851974,-480.0,0.00027726,5]
[364753435,1749229851984,-480.0,0.00027726,5]
[364753436,1749229851994,-480.0,0.00027726,5]
[364753437,1749229852003,-480.0,0.00027726,5]
[364753438,1749229852220,-480.0,0.00027726,5]
[364753439,1749229852230,-480.0,0.00027726,5]
[364753440,1749229852240,-425.70102416,0.00027726,5]
[364753441,1749229852249,-490.64,0.00027726,5]
[364753442,1749229852259,-480.0,0.00027726,5]
[364753443,1749229852268,-480.0,0.00027726,5]
[364753444,1749229852278,-500.0,0.00027726,5]
[364753445,1749229852289,-151.0,0.00027726,7]
[364753446,1749229852298,-480.0,0.00027726,5]
[364753447,1749229852308,-294.04866304,0.00027726,5]
[364753448,1749229852318,-480.0,0.00027726,5]
[364753449,1749229852327,-151.0,0.00027726,7]
[364753450,1749229852337,-480.0,0.00027726,5]
[364753451,1749229852346,-2384.26,0.00027726,5]
[364753452,1749229852356,-500.0,0.00027726,5]
[364753453,1749229852366,-151.0,0.00027726,7]
[364753454,1749229852376,-480.0,0.00027726,5]
[364753455,1749229852386,-480.0,0.00027726,5]
[364753456,1749229852397,-500.0,0.00027726,5]
[364753457,1749229852408,-653.07,0.00027726,5]
[364753458,1749229852418,-480.0,0.00027726,5]
[364753459,1749229852428,-151.0,0.00027726,7]
[364753460,1749229852437,-480.0,0.00027726,5]
[364753461,1749229852447,-150.0,0.00027726,5]
[364753462,1749229852456,-151.0,0.00027726,7]
[364753463,1749229852467,-757.83,0.00027726,5]
[364753464,1749229852477,-500.0,0.00027726,5]
[364753465,1749229852487,-480.0,0.00027726,5]
[364753466,1749229852496,-480.0,0.00027726,5]
[364753467,1749229852505,-1601.61,0.00027726,5]
[364753468,1749229852515,-589.54,0.00027726,5]
[364753469,1749229852524,-500.0,0.00027726,5]
[364753470,1749229852534,-480.0,0.00027726,5]
[364753471,1749229852543,-151.0,0.00027726,7]
[364753472,1749229852553,-429.0,0.00027726,5]
[364753473,1749229852562,-151.0,0.00027726,7]
[364753474,1749229852572,-480.0,0.00027726,5]
[364753475,1749229852581,-151.0,0.00027726,7]
[364753476,1749229852591,-480.0,0.00027726,5]
[364753477,1749229852604,-500.0,0.00027726,5]
[364753478,1749229852615,-151.0,0.00027726,7]
[364753479,1749229852624,-480.0,0.00027726,5]
[364753480,1749229852634,-150.0,0.00027726,5]
[364753481,1749229852644,-714.86,0.00027726,5]
[364753482,1749229852654,-150.0,0.00027726,5]
[364753483,1749229852664,-480.0,0.00027726,5]
[364753484,1749229852674,-777.0,0.00027726,5]
[364753485,1749229852683,-480.0,0.00027726,5]
[364753486,1749229852693,-480.0,0.00027726,5]
[364753487,1749229852703,-480.0,0.00027726,5]
[364753488,1749229852712,-500.0,0.00027726,5]
[364753489,1749229852722,-500.0,0.00027726,5]
[364753490,1749229852731,-1293.92,0.00027726,5]
[364753491,1749229852741,-480.0,0.00027726,5]
[364753492,1749229852751,-248.51935007,0.00027726,5]
[364753493,1749229852763,-480.0,0.00027726,5]
[364753494,1749229852774,-480.0,0.00027726,5]
[364753495,1749229852784,-952.4,0.00027726,5]
[364753496,1749229852795,-150.0,0.00027726,5]
[364753497,1749229852804,-692.87,0.00027726,5]
[364753498,1749229852814,-1552.44,0.00027726,5]
[364753499,1749229852823,-500.0,0.00027726,5]
[364753500,1749229852833,-824.69,0.00027726,5]
[364753501,1749229852843,-500.0,0.00027726,5]
[364753502,1749229852853,-155.32431393,0.00027726,5]
[364753503,1749229852863,-500.0,0.00027726,5]
[364753504,1749229852872,-878.5,0.00027726,5]
[364753505,1749229852882,-150.0,0.00027726,5]
[364753506,1749229852891,-480.0,0.00027726,5]
[364753507,1749229852900,-480.0,0.00027726,5]
[364753508,1749229852909,-150.0,0.00027726,5]
[364753509,1749229852919,-151.76992592,0.00027726,5]
[364753510,1749229852928,-1820.97,0.00027726,5]
[364753511,1749229852937,-150.0,0.00027726,5]
[364753512,1749229852947,-1445.92,0.00027726,5]
[364753513,1749229852956,-220.93,0.00027726,5]
[364753514,1749229852965,-500.0,0.00027726,5]
[364753515,1749229852974,-500.0,0.00027726,5]
[364753516,1749229852983,-500.0,0.00027726,5]
[364753517,1749229852993,-500.0,0.00027726,5]
[364753518,1749229853003,-480.0,0.00027726,5]
[364753519,1749229853012,-686.33,0.00027726,5]
[364753520,1749229853022,-1256.45,0.00027726,5]
[364753521,1749229853031,-623.18,0.00027726,5]
[364753522,1749229853041,-500.0,0.00027726,5]
[364753523,1749229853051,-1113.88,0.00027726,5]
[364753524,1749229853060,-480.0,0.00027726,5]
[364753525,1749229853069,-480.0,0.00027726,5]
[364753526,1749229853079,-876.31,0.00027726,5]
[364753527,1749229853088,-872.88,0.00027726,5]
[364753528,1749229853097,-565.93,0.00027726,5]
[364753529,1749229853106,-480.0,0.00027726,5]
[364753530,1749229853116,-757.79,0.00027726,5]
[364753531,1749229853125,-480.0,0.00027726,5]
[364753532,1749229853134,-767.93,0.00027726,5]
[364753533,1749229853145,-480.0,0.00027726,5]
[364753534,1749229853154,-480.0,0.00027726,5]
[364753535,1749229853163,-1120.8,0.00027726,5]
[364753536,1749229853173,-452.88,0.00027726,5]
[364753537,1749229853182,-151.0,0.00027726,7]
[364753538,1749229853193,-480.0,0.00027726,5]
[364753539,1749229853202,-480.0,0.00027726,5]
[364753540,1749229853212,-480.0,0.00027726,5]
[364753541,1749229853221,-695.31,0.00027726,5]